bitfinex-derivatives/quotes_ETHF0:USTF0_20250531
["timestamp","ask_amount","ask_price","bid_price","bid_amount"]
[1748688362647,1.3048,2514.7,2514.3,7.3128]
[1748688362849,0.79511,2514.5,2514.4,0.7951]
[1748688363154,2.09987,2514.6,2514.5,0.79508]
[1748688363649,0.79511,2514.5,2514.4,0.7951]
[1748688363851,1.3048,2514.5,2514.2,2.0037]
[1748688364150,1.43441,2514.4,2514.3,0.79515]
[1748688364447,1.43443,2514.4,2514.3,0.79515]
[1748688364936,0.6393,2514.4,2513.9,0.15596936]
[1748688365145,2.28526,2514.3,2514.2,0.79517]
[1748688365550,1.4901,2514.3,2514.0,3.8253]
[1748688365748,2.08649,2514.2,2514.1,0.79519]
[1748688366454,0.79521,2514.1,2514.0,1.41273]
[1748688366648,0.79521,2514.1,2513.9,0.15596936]
[1748688366649,0.79524,2514.0,2513.9,0.15596936]
[1748688366843,4.64494,2514.0,2513.9,0.15596936]
[1748688368353,4.64494,2514.0,2513.9,0.95123936]
[1748688368649,3.8497,2514.0,2513.9,0.95123936]
[1748688368846,0.00595711,2514.2,2514.1,0.79521]
[1748688369553,0.00595711,2514.2,2514.1,2.05451]
[1748688374545,0.1988,2514.3,2514.2,0.79518]
[1748688374856,1.8984,2514.8,2514.7,0.79502]
[1748688375654,2.69339,2514.8,2514.7,0.79502]
[1748688375957,0.79502,2514.7,2514.6,0.79504]
[1748688376149,0.79524,2514.0,2513.9,3.36376936]
[1748688376352,4.00304,2514.0,2513.9,0.15596936]
[1748688376661,0.79543,2513.4,2513.3,0.79545]
[1748688376854,3.2078,2513.7,2513.2,5.5502932]
[1748688377052,4.4762,2513.7,2513.2,5.5502932]
[1748688377246,0.6577,2513.6,2513.1,4.5102]
[1748688377450,2.05812,2513.5,2513.1,4.5102]
[1748688377646,2.05812,2513.5,2513.4,0.79543]
[1748688377850,2.0581,2513.5,2513.4,0.79543]
[1748688378158,1.2627,2513.5,2513.4,0.79543]
[1748688379247,1.98864,2513.4,2512.5,7.92899028]
[1748688379461,3.2078,2513.2,2512.7,0.79564]
[1748688379652,0.79561,2512.9,2512.7,0.79564]
[1748688379851,1.9204,2512.8,2512.7,0.79564]
[1748688380052,2.71602,2512.8,2512.7,0.79564]
[1748688380252,1.9204,2512.8,2512.7,0.79564]
[1748688381057,0.79552,2513.2,2513.0,0.79555]
[1748688381262,0.79554,2513.1,2512.9,0.79558]
[1748688381561,1.9243,2513.2,2512.5,5.8158]
[1748688381764,1.2561,2513.0,2512.5,3.2078]
[1748688382058,2.05167,2513.0,2512.8,0.7956]
[1748688382761,1.2561,2513.0,2512.6,0.6568]
[1748688382958,2.05168,2513.0,2512.8,0.7956]
[1748688383160,0.79561,2512.9,2512.7,0.79563]
[1748688383364,2.07111,2512.9,2512.7,0.79563]
[1748688383564,1.2755,2512.9,2512.8,0.79562]
[1748688384258,7.3148,2513.5,2512.8,3.2078]
[1748688384455,0.79552,2513.1,2513.0,0.79554]
[1748688384656,0.79552,2513.1,2513.0,0.79556]
[1748688384854,1.2755,2513.2,2512.8,3.2078]
[1748688385055,1.42968,2513.0,2512.8,0.7956]
[1748688385254,1.2755,2512.9,2512.8,0.79562]
[1748688386063,3.2078,2513.2,2513.1,0.79552]
[1748688386363,0.6341,2513.3,2513.2,0.79549]
[1748688386868,4.5406,2513.6,2513.5,0.7954]
[1748688387058,0.79541,2513.5,2513.4,0.79542]
[1748688387456,2.12821,2513.5,2513.4,0.79542]
[1748688387963,1.3328,2513.5,2513.4,0.79542]
[1748688388164,3.8279,2513.6,2513.5,0.7954]
[1748688388362,0.6201,2513.6,2513.5,0.7954]
[1748688388758,1.41547,2513.6,2513.5,0.7954]
[1748688388957,1.41547,2513.6,2513.4,1.9492]
[1748688388958,0.7954,2513.5,2513.4,2.74461]
[1748688389466,0.7954,2513.5,2513.4,0.79541]
[1748688389970,0.79543,2513.4,2513.3,4.00325]
[1748688390169,0.79543,2513.4,2513.3,3.2078]
[1748688390666,2.07122,2513.5,2513.4,0.79543]
[1748688390969,0.79543,2513.4,2513.3,4.00324]
[1748688391469,2.07122,2513.5,2513.4,0.79543]
[1748688391764,0.79543,2513.4,2513.3,4.00325]
[1748688392467,0.79549,2513.2,2513.1,1.45721]
[1748688392669,0.79549,2513.3,2513.2,0.79548]
[1748688394371,0.79545,2513.4,2513.3,0.79544]
[1748688394567,0.79545,2513.4,2513.3,0.79545]
[1748688394971,2.07121,2513.5,2513.4,0.79543]
[1748688395163,0.79541,2513.5,2513.4,0.79543]
[1748688395359,0.79546,2513.4,2513.3,0.79545]
[1748688396470,0.79546,2513.4,2513.2,1.2616]
[1748688396471,0.79549,2513.2,2513.1,0.6617]
[1748688397066,0.79552,2513.1,2513.0,0.6385]
[1748688397271,3.8892,2513.1,2512.5,3.2078]
[1748688397472,0.79567,2512.7,2512.6,0.79566]
[1748688399180,0.79568,2512.6,2512.5,5.93421]
[1748688399677,0.79568,2512.6,2512.5,3.2078]
[1748688400272,5.0,2512.6,2511.9,3.2078]
[1748688400575,0.79616,2511.1,2510.6,10.30768737]
[1748688400775,0.79648,2510.1,2510.0,19.02957669]
[1748688400975,0.79648,2510.1,2510.0,15.85798057]
[1748688400976,0.89649,2510.1,2510.0,15.85798057]
[1748688401163,3.2078,2510.3,2510.0,21.3932081]
[1748688401367,3.2078,2510.3,2509.4,7.90746791]
[1748688401566,3.2078,2510.1,2509.6,3.2078]
[1748688401766,1.3639,2510.2,2509.6,19.86241057]
[1748688401978,3.2078,2510.0,2509.7,5.53522753]
[1748688402270,3.2078,2510.0,2509.8,4.324]
[1748688402470,3.2078,2510.3,2509.9,5.53522753]
[1748688402675,3.2078,2510.6,2509.9,6.33173753]
[1748688402874,3.2078,2510.5,2510.0,6.33173753]
[1748688403070,3.2078,2510.0,2508.9,3.2078]
[1748688403275,0.00596908,2509.7,2509.2,3.2078]
[1748688403477,0.00596908,2509.7,2509.6,0.79663]
[1748688403672,0.00596908,2509.7,2509.6,6.33185753]
[1748688403975,0.00596908,2509.7,2509.6,32.0508381]
[1748688404278,3.2078,2510.3,2509.6,31.24823902]
[1748688404579,3.2078,2510.3,2509.8,0.79657]
[1748688404777,1.59330347,2510.2,2509.9,1.2372]
[1748688404975,1.59330347,2510.2,2509.9,6.77242753]
[1748688405177,1.59330347,2510.2,2510.0,5.53522753]
[1748688405475,1.59330347,2510.2,2510.1,7.56889753]
[1748688405774,3.93997639,2511.4,2510.9,5.53522753]
[1748688405976,0.79604,2511.5,2511.3,3.2078]
[1748688406169,3.2078,2511.7,2511.4,5.53522753]
[1748688406377,5.51596695,2512.3,2511.6,8.74302753]
[1748688406577,5.51596695,2512.3,2512.2,8.74302753]
[1748688406878,0.25725843,2512.5,2512.2,8.74302753]
[1748688407081,0.25725843,2512.5,2512.3,5.53522753]
[1748688407581,0.79575,2512.4,2512.3,3.91447547]
[1748688407986,0.79575,2512.4,2512.3,9.449703]
[1748688408181,0.25725843,2512.5,2512.2,3.2078]
[1748688408479,0.79578,2512.3,2512.2,8.74302753]
[1748688410076,1.05297843,2512.5,2512.2,12.657503]
[1748688410380,1.05297843,2512.5,2512.3,6.88152753]
[1748688410381,0.25725843,2512.5,2512.3,6.88152753]
[1748688410880,0.25725843,2512.5,2512.4,5.53522753]
[1748688411077,0.00596908,2512.5,2512.4,7.62226753]
[1748688411285,1e-08,2512.5,2512.4,6.82652753]
[1748688411684,0.79571001,2512.5,2512.4,6.82652753]
[1748688412184,1e-08,2512.5,2512.4,6.82652753]
[1748688413184,1e-08,2512.5,2512.4,7.62226753]
[1748688413482,0.79571001,2512.5,2512.4,6.82652753]
[1748688414170,1e-08,2512.5,2512.4,6.82652753]
[1748688414375,1e-08,2512.5,2512.4,7.62226753]
[1748688415381,1e-08,2512.5,2512.4,11.536743]
[1748688415582,1e-08,2512.5,2512.4,16.536743]
[1748688416582,1e-08,2512.5,2512.4,11.536743]
[1748688417981,1e-08,2512.5,2512.4,16.536743]
[1748688418178,1e-08,2512.5,2512.4,21.630743]
[1748688418383,1e-08,2512.5,2512.4,16.630743]
[1748688420288,1e-08,2512.5,2512.4,11.536743]
[1748688420487,1e-08,2512.5,2512.4,16.630743]
[1748688420689,1e-08,2512.5,2512.4,11.536743]
[1748688421090,1e-08,2512.5,2512.4,16.630743]
[1748688421286,1e-08,2512.5,2512.4,11.536743]
[1748688421486,1e-08,2512.5,2512.4,16.630743]
[1748688422380,0.79539,2513.6,2513.5,0.79537]
[1748688422678,0.79536,2513.6,2513.5,3.2078]
[1748688422890,0.79536,2513.6,2513.5,8.74302753]
[1748688423188,0.79536,2513.6,2513.5,10.02422753]
[1748688424090,0.79542,2513.4,2513.3,0.00596908]
[1748688424592,5.79542,2513.4,2513.3,0.00596908]
[1748688425890,7.38688161,2513.4,2513.3,0.00596908]
[1748688427390,5.79542,2513.4,2513.3,0.00596908]
[1748688427985,0.79542,2513.4,2513.3,0.00596908]
[1748688428283,0.79542,2513.4,2513.3,5.54119661]
[1748688428487,0.79542,2513.4,2513.3,6.87519661]
[1748688429389,0.79542,2513.4,2513.3,7.67065661]
[1748688429985,0.79542,2513.4,2513.3,6.87519661]
[1748688430485,0.79542,2513.4,2513.3,7.67065661]
[1748688430691,0.79542,2513.4,2513.3,6.87519661]
[1748688430989,0.79542,2513.4,2513.3,7.67065661]
[1748688431188,0.79542,2513.4,2513.3,6.87519661]
[1748688431393,0.79542,2513.4,2513.3,5.54119661]
[1748688431889,0.79542,2513.4,2513.3,7.69805661]
[1748688432087,0.79542,2513.5,2513.4,0.79541]
[1748688432286,0.79542,2513.5,2513.4,7.64823753]
[1748688432588,0.79542,2513.5,2513.4,11.56271299]
[1748688433189,1.30296908,2513.8,2513.4,10.76730299]
[1748688433490,1.30296908,2513.8,2513.7,4.00313]
[1748688433491,0.00596908,2513.8,2513.7,4.00313]
[1748688433994,0.00596908,2513.8,2513.7,9.53835753]
[1748688434691,2.33687446,2514.7,2513.9,1.98817]
[1748688434896,0.79504,2514.6,2514.5,3.2078]
[1748688435796,0.79504,2514.6,2514.5,10.04732753]
[1748688436598,1.59062039,2514.6,2514.5,10.84237753]
[1748688436896,1.59062039,2514.6,2514.5,10.84240753]
[1748688437198,1.59062039,2514.6,2514.5,13.96175299]
[1748688437600,2.38566039,2514.6,2514.5,13.16667299]
[1748688437793,1.59062039,2514.6,2514.5,13.96175299]
[1748688437989,0.00596908,2514.8,2514.7,0.79501]
[1748688438390,0.79495,2514.9,2514.7,13.55957299]
[1748688438589,0.79494,2515.0,2514.8,14.44298753]
[1748688438807,1.98702,2515.4,2514.8,14.89082753]
[1748688438808,0.79491,2515.1,2514.8,14.89082753]
[1748688438991,0.79479,2515.5,2515.3,0.79481]
[1748688439197,0.79479,2515.5,2514.9,5.53522753]
[1748688439198,5.73989446,2515.6,2515.4,5.24538]
[1748688439492,4.94514446,2515.6,2515.5,0.79476]
[1748688439696,3.403,2515.6,2515.5,6.77802753]
[1748688439899,3.403,2515.6,2515.5,9.89737299]
[1748688440103,2.60827,2515.6,2515.5,15.59613299]
[1748688440599,4.19811353,2515.6,2515.5,15.59613299]
[1748688441201,4.99284353,2515.6,2515.5,15.59613299]
[1748688441400,4.99284353,2515.6,2515.5,14.80137299]
[1748688441800,4.99284353,2515.6,2515.5,8.65457299]
[1748688442010,0.79476,2515.5,2515.4,8.1108]
[1748688442498,1.58984353,2515.5,2515.4,12.02493546]
[1748688442707,1.58984353,2515.5,2515.4,17.56016299]
[1748688443104,3.403,2515.6,2515.5,0.79476]
[1748688443294,3.403,2515.6,2515.5,6.84762753]
[1748688443599,3.403,2515.6,2515.5,9.96697299]
[1748688443799,4.99284131,2515.6,2515.5,9.96697299]
[1748688445397,4.19811131,2515.6,2515.5,10.76173299]
[1748688445704,0.79454,2516.2,2516.0,3.99293307]
[1748688445905,0.79453,2516.3,2516.1,5.36097]
[1748688446095,0.79453,2516.3,2516.2,1.3586]
[1748688446299,0.79453,2516.3,2516.2,4.55695307]
[1748688446707,0.79453,2516.3,2516.2,3.19835307]
[1748688446902,0.79467,2515.8,2515.7,10.2641]
[1748688447206,0.79466,2515.9,2515.8,3.19835307]
[1748688447406,0.79466,2515.9,2515.8,5.27942307]
[1748688447708,0.79463,2515.9,2515.8,5.27939307]
[1748688447912,1.2428,2516.4,2516.0,0.79459]
[1748688448106,1.2428,2516.4,2515.8,9.38775307]
[1748688448107,0.00381876,2516.5,2516.4,3.99283307]
[1748688448408,0.00381876,2516.5,2516.4,8.89483307]
[1748688449306,1.2925,2517.5,2516.8,2.14038431]
[1748688449515,0.79416,2517.4,2517.3,3.2078]
[1748688450310,0.79429,2517.0,2516.9,3.2078]
[1748688450700,0.79429,2517.0,2516.9,5.34818431]
[1748688451307,0.79427,2517.1,2516.9,5.34818431]
[1748688451504,6.32553062,2517.7,2517.0,3.44578431]
[1748688451714,0.79415,2517.5,2517.3,0.79418]
[1748688451906,0.79416,2517.4,2517.3,1.3054]
[1748688452306,0.79416,2517.4,2517.3,3.44578431]
[1748688453008,6.39510062,2518.1,2517.3,3.44578431]
[1748688453009,3.2078,2518.0,2517.3,3.44578431]
[1748688453311,0.79407,2517.7,2517.6,3.2078]
[1748688453810,0.79407,2517.7,2517.6,5.34818431]
[1748688454003,0.79406,2517.8,2517.6,6.14228431]
[1748688454205,0.79402,2517.9,2517.7,4.23723431]
[1748688454401,3.11773062,2518.1,2517.8,2.09683]
[1748688454611,0.79397,2518.0,2517.9,3.2078]
[1748688454908,0.79397,2518.0,2517.9,6.65098431]
[1748688456316,0.79397,2518.0,2517.9,5.34818431]
[1748688456816,1.98501,2517.9,2517.5,3.2078]
[1748688457010,0.7941,2517.6,2517.5,3.2078]
[1748688457618,0.7941,2517.6,2517.5,5.34818431]
[1748688457910,0.7941,2517.6,2517.5,6.14231431]
[1748688458112,2.34051715,2517.6,2517.5,6.14231431]
[1748688458413,1.54641715,2517.6,2517.5,6.14231431]
[1748688459307,1.54641715,2517.6,2517.5,12.28181431]
[1748688459507,1.54641715,2517.6,2517.5,7.38281431]
[1748688459815,1.54641715,2517.6,2517.5,12.28181431]
[1748688460216,2.34051715,2517.6,2517.5,12.28181431]
[1748688460410,2.34051715,2517.6,2517.5,11.48668431]
[1748688460612,2.34051715,2517.6,2517.5,5.34818431]
[1748688461117,1.54641715,2517.6,2517.5,6.14231431]
[1748688461512,1.54641715,2517.6,2517.5,5.34818431]
[1748688461710,2.34051715,2517.6,2517.5,10.24618431]
[1748688462009,2.34051715,2517.6,2517.5,5.34818431]
[1748688462212,2.34051715,2517.6,2517.5,10.24618431]
[1748688462817,2.34051715,2517.6,2517.5,5.34818431]
[1748688463415,2.34051715,2517.6,2517.5,3.2078]
[1748688463614,2.34051715,2517.6,2517.5,5.34818431]
[1748688463808,2.34051715,2517.6,2517.5,3.2078]
[1748688464111,2.34051715,2517.6,2517.5,2.96508382]
[1748688464315,2.34051715,2517.6,2517.5,2.14038431]
[1748688465112,3.64681715,2517.6,2517.5,2.14038431]
[1748688465418,0.79419,2517.4,2517.3,0.79418]
[1748688465619,0.79419,2517.4,2517.3,1.3069]
[1748688465918,0.79419,2517.4,2517.3,3.44728431]
[1748688466119,2.34060715,2517.4,2517.3,3.44728431]
[1748688467520,2.34060715,2517.4,2517.3,2.14038431]
[1748688468321,2.34060715,2517.4,2517.3,2.93457431]
[1748688469623,1.54641715,2517.4,2517.3,2.93457431]
[1748688470122,2.34057715,2517.4,2517.3,2.93457431]
[1748688470518,1.54641715,2517.4,2517.3,2.93457431]
[1748688472412,1.54641715,2517.4,2517.3,7.69257431]
[1748688473126,1.54641715,2517.4,2517.3,2.93457431]
[1748688473320,1.54641715,2517.4,2517.3,7.69257431]
[1748688474122,1.54641715,2517.4,2517.3,6.14237431]
[1748688474337,1.54641715,2517.4,2517.3,10.90037431]
[1748688475533,3.89642405,2517.4,2517.3,10.90037431]
[1748688476731,3.89642405,2517.4,2517.3,15.90037431]
[1748688477830,2.3500069,2517.4,2517.3,15.90037431]
[1748688478135,3.81926876,2517.4,2517.3,15.90037431]
[1748688478338,3.81926876,2517.4,2517.3,10.90037431]
[1748688478738,1.46926186,2517.4,2517.3,10.90037431]
[1748688479730,3.1191363,2517.6,2517.5,0.79413]
[1748688479934,3.89716328,2517.9,2517.8,0.79403]
[1748688480134,3.89716328,2517.9,2517.8,10.89921431]
[1748688481842,0.79397,2518.0,2517.9,0.794]
[1748688482143,0.794,2517.9,2517.8,5.34818431]
[1748688482340,0.794,2518.0,2517.9,0.79397]
[1748688482540,0.794,2518.0,2517.9,2.93435431]
[1748688482741,0.79396,2518.1,2518.0,0.79392]
[1748688482937,0.79396,2518.1,2518.0,2.93430431]
[1748688483138,0.79396,2518.1,2518.0,6.14210431]
[1748688483336,0.794,2517.9,2517.8,0.79403]
[1748688483642,0.79403,2517.8,2517.7,4.00185]
[1748688483843,0.79403,2517.8,2517.7,3.2078]
[1748688484147,5.19282,2517.9,2517.2,4.757]
[1748688484443,0.79417,2517.4,2517.3,5.34818431]
[1748688484638,0.79417,2517.4,2517.3,3.2078]
[1748688484849,0.79417,2517.4,2517.3,5.34818431]
[1748688485739,0.79417,2517.4,2517.3,3.2078]
[1748688486246,0.79426,2517.1,2517.0,7.9648]
[1748688486545,0.79426,2517.1,2517.0,5.34818431]
[1748688487236,0.79426,2517.1,2517.0,3.2078]
[1748688487437,2.03916,2517.1,2517.0,3.2078]
[1748688490542,2.03916,2517.1,2517.0,4.00209]
[1748688490744,2.03916,2517.1,2517.0,3.2078]
[1748688491540,0.79435,2516.8,2516.7,3.21376908]
[1748688491746,4.00215,2516.8,2516.7,0.00596908]
[1748688491937,0.79435,2516.8,2516.7,0.00596908]
[1748688492537,2.20559624,2516.8,2516.7,0.00596908]
[1748688493244,3.45409624,2516.8,2516.7,0.00596908]
[1748688493841,4.13369624,2516.8,2516.7,0.00596908]
[1748688494445,0.79444,2516.5,2516.4,1.05997]
[1748688495746,1.41124624,2516.5,2516.4,7.20260431]
[1748688496642,0.00592957,2516.7,2516.6,0.79441]
[1748688496845,0.80033957,2516.7,2516.5,4.28921431]
[1748688497143,0.00592957,2516.7,2516.5,2.14038431]
[1748688497344,0.80030957,2516.7,2516.6,2.14038431]
[1748688497542,0.00592957,2516.7,2516.6,2.93479431]
[1748688497754,0.00592957,2516.7,2516.6,9.28919431]
[1748688498445,0.00592957,2516.7,2516.6,4.94109431]
[1748688499453,0.00592957,2516.7,2516.6,9.50909431]
[1748688499649,0.80030957,2516.7,2516.6,2.14038431]
[1748688499846,0.80030957,2516.7,2516.6,2.93479431]
[1748688500248,0.80030957,2516.7,2516.6,2.14038431]
[1748688500654,0.00592957,2516.7,2516.6,2.93479431]
[1748688501357,0.80030957,2516.7,2516.6,2.93479431]
[1748688501557,0.00592957,2516.7,2516.6,2.93479431]
[1748688502350,0.79425,2517.2,2516.7,1.98594]
[1748688502551,0.79425,2517.2,2517.1,0.79426]
[1748688502757,3.35235,2517.5,2517.0,4.00206]
[1748688503056,0.79422,2517.2,2517.1,3.43988431]
[1748688503254,0.79422,2517.2,2517.1,2.14038431]
[1748688504359,0.79421,2517.3,2517.2,0.79421]
[1748688504560,0.79421,2517.3,2517.2,2.09371]
[1748688504764,0.79421,2517.3,2517.2,3.43988431]
[1748688504953,1.98557,2517.2,2516.6,3.8378]
[1748688505257,1.3171,2517.2,2516.7,8.06268431]
[1748688505454,0.79432,2516.9,2516.8,2.14863]
[1748688505658,0.79432,2516.9,2516.8,4.28901431]
[1748688506353,0.79431,2517.0,2516.9,0.79431]
[1748688506550,0.79431,2517.0,2516.9,6.14249431]
[1748688506750,0.79431,2517.0,2516.9,7.49679431]
[1748688507555,0.79431,2517.0,2516.9,2.14038431]
[1748688507950,0.99291,2517.0,2516.9,2.93470431]
[1748688508256,0.99291,2517.0,2516.9,6.14250431]
[1748688509253,0.99289,2517.0,2516.9,6.14250431]
[1748688509451,0.1986,2517.0,2516.9,6.14250431]
[1748688512257,0.99289,2517.0,2516.9,6.14250431]
[1748688512458,0.1986,2517.0,2516.9,7.42700431]
[1748688517065,0.1986,2517.0,2516.9,11.99500431]
[1748688519764,0.79415,2517.5,2517.4,0.79413]
[1748688519972,0.79415,2517.5,2517.4,6.14231431]
[1748688520856,0.79415,2517.5,2517.4,5.34818431]
[1748688521151,0.79415,2517.5,2517.4,6.14234431]
[1748688521351,2.19618712,2517.5,2517.4,6.14234431]
[1748688521754,2.19618712,2517.5,2517.4,7.44614431]
[1748688521950,1.3455,2517.9,2517.4,11.21998431]
[1748688522155,0.79402,2517.9,2517.8,0.79401]
[1748688522562,0.79402,2517.9,2517.8,4.23819431]
[1748688522759,0.79402,2517.9,2517.8,3.44418431]
[1748688522972,2.19647207,2517.9,2517.8,3.44418431]
[1748688523466,0.79402,2517.9,2517.8,4.23821431]
[1748688523966,0.79402,2517.9,2517.8,3.44418431]
[1748688524160,1.40214944,2518.1,2517.8,3.44418431]
[1748688524467,0.79399,2518.0,2517.9,2.93437431]
[1748688524873,3.2078,2518.5,2517.9,6.70838431]
[1748688525066,3.2078,2518.5,2518.1,3.2078]
[1748688525267,0.7939,2518.3,2518.2,2.1305]
[1748688525466,0.7939,2518.3,2518.2,4.27088431]
[1748688526170,1.3477,2518.8,2518.2,4.27088431]
[1748688526171,2.36795721,2519.0,2518.6,0.79376]
[1748688526463,3.16161721,2519.0,2518.9,3.2078]
[1748688526869,3.16161721,2519.0,2518.6,3.2078]
[1748688526870,0.79375,2518.7,2518.6,3.2078]
[1748688527069,5.79375,2518.7,2518.6,3.2078]
[1748688527370,0.79385,2518.4,2518.3,3.2078]
[1748688527571,0.7938,2518.6,2518.4,2.93421431]
[1748688527974,0.7938,2518.6,2518.5,2.93419431]
[1748688528174,1.98407,2519.1,2518.5,2.14038431]
[1748688528470,0.79375,2518.7,2518.6,5.34818431]
[1748688529371,0.79375,2518.7,2518.6,6.69598431]
[1748688529573,1.98407,2519.1,2518.6,7.48976431]
[1748688529875,0.79375,2518.7,2518.6,3.2078]
[1748688530368,0.79375,2518.7,2518.6,5.34818431]
[1748688531574,0.79375,2518.7,2518.6,3.2078]
[1748688533069,0.79385,2518.4,2518.3,3.2078]
[1748688533270,0.79385,2518.4,2518.3,5.34818431]
[1748688533772,0.79385,2518.4,2518.3,3.2078]
[1748688534973,0.79394,2518.1,2518.0,3.2078]
[1748688535367,0.79394,2518.1,2518.0,5.34818431]
[1748688536970,0.79394,2518.1,2518.0,3.2078]
[1748688538475,2.03094,2518.1,2518.0,3.2078]
[1748688538868,0.79403,2517.8,2517.7,3.2078]
[1748688539071,0.79403,2517.8,2517.7,5.34818431]
[1748688541770,0.79403,2517.8,2517.7,6.60348431]
[1748688543078,0.79403,2517.8,2517.7,7.39755431]
[1748688543674,0.79401,2517.9,2517.8,0.79401]
[1748688543875,0.79399,2518.0,2517.9,0.79399]
[1748688544070,0.79399,2518.0,2517.9,4.18967431]
[1748688544294,0.79396,2518.1,2518.0,0.79396]
[1748688544477,0.79396,2518.1,2518.0,7.39454431]
[1748688544880,0.79396,2518.1,2518.0,6.60058431]
[1748688545980,0.79396,2518.1,2518.0,7.39455431]
[1748688546178,0.6518,2518.6,2518.0,7.39455431]
[1748688546179,0.6518,2518.6,2518.0,7.88638431]
[1748688546383,2.61493,2518.8,2518.3,3.2078]
[1748688546684,0.79378,2518.6,2518.5,0.7938]
[1748688546877,0.79378,2518.6,2518.5,1.41]
[1748688547082,0.79378,2518.6,2518.5,3.55038431]
[1748688547386,0.79378,2518.6,2518.5,4.88518431]
[1748688548083,0.79378,2518.6,2518.5,4.09138431]
[1748688550885,0.79378,2518.6,2518.5,4.88519431]
[1748688551485,0.79378,2518.6,2518.5,4.09138431]
[1748688551687,0.79378,2518.6,2518.5,4.88519431]
[1748688551986,0.79378,2518.6,2518.5,4.09138431]
[1748688552286,0.79378,2518.6,2518.5,4.88519431]
[1748688552489,0.79377,2518.7,2518.6,0.79377]
[1748688552788,0.79377,2518.7,2518.6,6.14195431]
[1748688553287,2.19848221,2518.7,2518.6,6.14195431]
[1748688553984,2.19846221,2518.7,2518.6,6.14195431]
[1748688554487,0.79375,2518.7,2518.6,6.14195431]
[1748688556186,0.79375,2518.7,2518.6,2.93415431]
[1748688556386,0.79375,2518.7,2518.6,5.34818431]
[1748688557081,0.79375,2518.7,2518.3,3.2078]
[1748688557082,1.98448,2518.6,2518.3,3.2078]
[1748688557384,0.79385,2518.4,2518.3,3.2078]
[1748688558188,2.19835138,2518.4,2518.3,3.2078]
[1748688559286,2.19835138,2518.4,2518.3,5.34818431]
[1748688559487,1.40450138,2518.4,2518.3,6.81476431]
[1748688560492,0.79376,2518.7,2518.6,0.79375]
[1748688560682,0.79376,2518.7,2518.6,4.00155]
[1748688560883,0.79376,2518.7,2518.6,6.14193431]
[1748688561293,0.79374,2518.8,2518.7,0.79374]
[1748688561599,0.79375,2518.7,2518.6,4.00156]
[1748688561887,0.79374,2518.8,2518.7,2.93412431]
[1748688562087,0.79374,2518.8,2518.7,2.14038431]
[1748688562290,0.79374,2518.8,2518.7,2.93413431]
[1748688562491,0.79374,2518.8,2518.7,2.14038431]
[1748688562793,0.79374,2518.8,2518.7,2.93413431]
[1748688563090,0.79374,2518.8,2518.7,2.14038431]
[1748688563395,2.36795721,2519.5,2518.8,1.98431]
[1748688563584,0.79355,2519.4,2519.2,4.00137]
[1748688563888,3.16147721,2519.5,2519.3,1.44785]
[1748688564189,5.14084628,2519.8,2519.3,1.44785]
[1748688564190,0.79353,2519.4,2519.3,2.14038431]
[1748688564388,0.79353,2519.4,2518.9,0.00595723]
[1748688564390,0.79366,2519.0,2518.9,0.00595723]
[1748688564592,1.98398,2519.3,2518.9,0.00595723]
[1748688564593,0.79364,2519.1,2519.0,2.14038431]
[1748688564895,1.98368,2519.6,2519.0,2.14038431]
[1748688565087,0.79362,2519.1,2519.0,4.9458]
[1748688565391,0.79361,2519.2,2519.1,2.14038431]
[1748688565592,0.79359,2519.2,2519.1,2.14038431]
[1748688565794,0.79359,2519.2,2519.1,2.93401431]
[1748688565995,0.79359,2519.2,2519.1,2.14038431]
[1748688566388,0.79354,2519.4,2519.2,0.79358]
[1748688566586,0.79354,2519.4,2519.3,4.00136]
[1748688566792,0.79354,2519.4,2519.3,5.34818431]
[1748688567296,0.79353,2519.4,2519.3,6.14174431]
[1748688567698,0.79351,2519.5,2519.3,6.14174431]
[1748688568004,0.79351,2519.5,2519.4,2.14038431]
[1748688568398,0.79351,2519.5,2519.4,3.45378431]
[1748688572500,0.79351,2519.5,2519.4,4.24731431]
[1748688573402,1.3546,2519.9,2519.5,0.79347]
[1748688573604,0.79344,2519.7,2519.6,4.4439]
[1748688573800,0.79344,2519.7,2519.6,6.58428431]
[1748688575606,0.79344,2519.7,2519.6,5.34818431]
[1748688576695,0.79353,2519.4,2519.3,3.2078]
[1748688576906,0.79353,2519.4,2519.3,2.14038431]
[1748688577403,0.79353,2519.4,2519.3,5.34818431]
[1748688577605,0.79366,2519.0,2518.9,0.00595723]
[1748688578100,0.79366,2519.0,2518.9,2.94003154]
[1748688578301,0.79353,2519.4,2519.2,0.79358]
[1748688578503,0.79355,2519.4,2519.2,4.00138]
[1748688578705,0.79344,2519.7,2519.3,2.14038431]
[1748688579002,0.79342,2519.8,2519.3,2.93394431]
[1748688579201,1.39675468,2519.6,2519.5,3.2078]
[1748688579599,1.39675468,2519.6,2519.5,5.34818431]
[1748688580000,1.39675468,2519.6,2519.5,2.14038431]
[1748688580505,1.39675468,2519.6,2519.5,5.34818431]
[1748688581807,1.39675468,2519.6,2519.5,6.14168431]
[1748688583909,2.6621,2519.9,2519.7,0.79342]
[1748688584207,0.79331,2520.1,2519.9,0.79336]
[1748688584417,2.05491,2520.1,2519.9,0.79336]
[1748688585107,0.79329,2520.2,2520.0,0.79332]
[1748688585305,0.6517,2520.3,2519.9,2.14038431]
[1748688585506,0.6517,2520.3,2520.2,0.79328]
[1748688585704,1.9133,2520.3,2520.2,0.79328]
[1748688586398,3.31026287,2520.3,2520.2,0.79328]
[1748688586905,2.65856287,2520.3,2520.2,2.93366431]
[1748688587106,1.39696287,2520.3,2520.2,2.93366431]
[1748688587903,3.2078,2520.6,2520.5,0.79318]
[1748688588301,4.60426059,2520.6,2520.5,0.79318]
[1748688588713,4.60426059,2520.6,2520.5,2.93356431]
[1748688588907,2.36795721,2521.0,2520.5,2.14038431]
[1748688589110,4.4466,2520.9,2520.3,3.21375723]
[1748688589312,4.4466,2520.9,2520.3,5.35414154]
[1748688589512,0.79317,2520.6,2520.4,0.79321]
[1748688589812,1.2388,2520.5,2520.3,5.35414154]
[1748688590117,0.6241,2520.4,2520.3,2.93959154]